bitfinex/quotes_SOLUSD_20250419
["timestamp","ask_amount","ask_price","bid_price","bid_amount"]
[1745093605405,18.64964886,138.32,138.31,0.063]
[1745093605584,29.3097062,138.32,138.31,0.063]
[1745093605993,71.94993556,138.32,138.31,0.063]
[1745093608715,36.53931869,138.32,138.31,0.063]
[1745093610328,18.64964886,138.32,138.31,0.063]
[1745093610528,29.3097062,138.32,138.31,0.063]
[1745093616835,29.3097062,138.32,138.31,0.063]
[1745093621322,18.64964886,138.34,138.31,0.063]
[1745093622344,24.72005734,138.35,138.31,0.063]
[1745093622522,14.06,138.35,138.32,10.66005734]
[1745093623139,14.06,138.35,138.32,17.88940774]
[1745093623342,14.06,138.35,138.32,7.2293504]
[1745093628248,24.72005734,138.35,138.32,7.2293504]
[1745093629647,14.06,138.35,138.32,7.2293504]
[1745093630251,29.3097062,138.34,138.31,0.063]
[1745093630448,14.06,138.35,138.32,10.66005734]
[1745093631522,0.03,138.38,138.34,10.66005734]
[1745093631735,0.03,138.38,138.36,10.66005734]
[1745093632138,0.03,138.38,138.35,10.66005734]
[1745093633342,0.03,138.38,138.35,17.88770019]
[1745093641829,10.66005734,138.37,138.33,10.66005734]
[1745093642149,10.66005734,138.37,138.33,17.88896419]
[1745093642342,10.66005734,138.37,138.33,7.22890685]
[1745093642855,36.56647241,138.38,138.33,17.88896419]
[1745093646453,36.56647241,138.38,138.31,108.9163]
[1745093646454,10.66005734,138.36,138.32,7.2294621]
[1745093646648,10.66005734,138.36,138.31,45.50627761]
[1745093647459,18.64964886,138.36,138.32,10.66005734]
[1745093650662,18.64964886,138.36,138.32,17.88917479]
[1745093654066,29.3097062,138.36,138.32,7.22911745]
[1745093654248,18.64964886,138.36,138.32,17.88917479]
[1745093656772,25.87729728,138.36,138.32,17.88917479]
[1745093656955,36.53735462,138.36,138.32,7.22911745]
[1745093657547,29.3097062,138.36,138.32,7.22911745]
[1745093659967,18.64964886,138.36,138.32,7.22911745]
[1745093660162,14.06,138.37,138.33,10.66005734]
[1745093660569,14.06,138.37,138.34,7.22856729]
[1745093663079,14.06,138.37,138.33,7.22908985]
[1745093663975,14.06,138.37,138.33,17.88914719]
[1745093664152,14.06,138.37,138.34,10.66005734]
[1745093665065,0.03,138.38,138.34,10.66005734]
[1745093665285,0.03,138.38,138.35,7.22804481]
[1745093672954,0.03,138.38,138.35,17.88810215]
[1745093673361,0.03,138.38,138.37,10.66005734]
[1745093674662,0.03,138.38,138.35,17.88810215]
[1745093675363,0.03,138.38,138.36,10.66005734]
[1745093677075,0.03,138.38,138.37,7.22700007]
[1745093678377,0.03,138.38,138.36,17.88738094]
[1745093681969,0.03,138.38,138.34,7.22856729]
[1745093682560,0.03,138.38,138.34,17.88862463]
[1745093689882,0.03,138.38,138.35,10.66005734]
[1745093691865,0.03,138.38,138.35,17.88801063]
[1745093694887,0.03,138.38,138.37,10.66005734]
[1745093696396,0.03,138.38,138.37,17.88705741]
[1745093698779,0.03,138.38,138.37,7.22700007]
[1745093701995,0.03,138.38,138.35,10.66005734]
[1745093703694,0.03,138.38,138.35,17.8879037]
[1745093704392,0.03,138.38,138.36,10.66005734]
[1745093705692,0.03,138.38,138.33,25.30160445]
[1745093705895,29.3097062,138.37,138.32,125.18946349]
[1745093706088,29.3097062,138.37,138.32,7.22940615]
[1745093706405,29.3097062,138.37,138.32,17.88946349]
[1745093707702,36.53675059,138.37,138.32,17.88946349]
[1745093709896,10.66005734,138.36,138.32,7.22940615]
[1745093710584,36.53675059,138.37,138.32,7.22940615]
[1745093710899,17.88769819,138.36,138.32,7.22940615]
[1745093711593,18.64964886,138.35,138.31,17.95303822]
[1745093711800,18.64964886,138.35,138.31,7.29298088]
[1745093712002,18.64964886,138.35,138.31,17.95303822]
[1745093712203,18.64964886,138.35,138.31,7.29298088]
[1745093713000,18.64964886,138.35,138.31,17.95303822]
[1745093728709,14.06,138.36,138.32,10.66005734]
[1745093729411,14.06,138.36,138.32,17.88916339]
[1745093730214,24.72005734,138.36,138.32,7.22910605]
[1745093731009,31.94765337,138.36,138.32,7.22910605]
[1745093731226,10.66005734,138.33,138.31,0.063]
[1745093732405,10.66005734,138.34,138.31,0.063]
[1745093733194,21.7707,138.36,138.32,10.66005734]
[1745093733503,14.06,138.36,138.32,10.66005734]
[1745093734001,14.06,138.36,138.33,7.22908985]
[1745093743525,14.06,138.36,138.31,10.72305734]
[1745093744931,24.72005734,138.36,138.31,0.063]
[1745093745109,18.64964886,138.35,138.31,0.063]
[1745093747032,25.87780082,138.35,138.31,0.063]
[1745093747238,10.66005734,138.33,138.31,0.063]
[1745093748226,10.66005734,138.32,138.31,0.063]
[1745093748439,18.64964886,138.33,138.31,0.063]
[1745093758220,18.64964886,138.34,138.31,10.72305734]
[1745093759541,18.64964886,138.34,138.31,17.95295946]
[1745093759832,96.46,138.36,138.32,10.66005734]
[1745093760016,14.06,138.36,138.32,10.66005734]
[1745093761143,14.06,138.36,138.31,7.29290212]
[1745093761336,14.06,138.36,138.31,17.95295946]
[1745093761337,24.72005734,138.36,138.31,17.95295946]
[1745093763345,31.94758442,138.36,138.31,17.95295946]
[1745093763551,10.66005734,138.34,138.31,0.063]
[1745093766140,36.5381406,138.35,138.31,0.063]
[1745093766347,29.3097062,138.35,138.31,0.063]
[1745093766524,18.64964886,138.35,138.31,10.72305734]
[1745093767150,18.64964886,138.35,138.31,17.95272257]
[1745093770553,18.64964886,138.35,138.31,0.063]
[1745093772331,18.64964886,138.35,138.31,7.2931352]
[1745093772959,36.53781502,138.35,138.31,7.2931352]
[1745093774054,29.3097062,138.35,138.31,7.2931352]
[1745093775360,18.64964886,138.35,138.31,7.2931352]
[1745093780669,10.66005734,138.34,138.31,0.063]
[1745093781158,25.87769866,138.35,138.31,0.063]
[1745093781364,36.537756,138.35,138.31,0.063]
[1745093781655,29.3097062,138.35,138.31,0.063]
[1745093782854,36.53775621,138.35,138.31,0.063]
[1745093785761,36.53775621,138.35,138.31,7.2931352]
[1745093786861,29.3097062,138.35,138.31,7.2931352]
[1745093787172,22.88987132,138.36,138.31,7.2931352]
[1745093787173,24.72005734,138.36,138.31,7.2931352]
[1745093787463,14.06,138.36,138.32,10.66005734]
[1745093787838,14.06,138.36,138.33,7.22908985]
[1745093790965,14.06,138.36,138.32,17.88944838]
[1745093791352,10.66005734,138.34,138.31,7.29294449]
[1745093791561,10.66005734,138.34,138.31,0.063]
[1745093791967,10.66005734,138.35,138.31,0.063]
[1745093792956,10.66005734,138.34,138.31,0.063]
[1745093793271,10.66005734,138.33,138.31,0.063]
[1745093793446,18.64964886,138.33,138.31,0.063]
[1745093800276,32.70964886,138.33,138.31,0.063]
[1745093803677,43.3697062,138.33,138.31,0.063]
[1745093805674,29.3097062,138.32,138.31,0.063]
[1745093807891,36.53931869,138.32,138.31,0.063]
[1745093824293,25.87926135,138.32,138.31,0.063]
[1745093824497,36.53931869,138.32,138.31,0.063]
[1745093826198,18.64964886,138.32,138.31,0.063]
[1745093826495,82.4,138.37,138.32,1.5064]
[1745093826680,7.2271091,138.37,138.33,10.66005734]
[1745093826882,18.64964886,138.36,138.33,10.66005734]
[1745093829878,18.64964886,138.36,138.33,17.88910554]
[1745093830081,18.64964886,138.37,138.34,10.66005734]
[1745093831208,18.64964886,138.37,138.34,17.88857907]
[1745093831383,262.03,138.38,138.35,10.66005734]
[1745093831582,14.11,138.38,138.37,10.66005734]
[1745093833006,14.11,138.38,138.37,17.88705741]
[1745093834005,0.03,138.38,138.37,17.88705741]
[1745093835510,0.03,138.38,138.36,17.88748034]
[1745093837211,0.03,138.38,138.37,10.66005734]
[1745093839308,0.03,138.38,138.37,17.88705741]
[1745093839608,0.03,138.38,138.37,19.43245741]
[1745093840907,0.03,138.38,138.37,8.77240007]
[1745093841100,0.03,138.38,138.37,19.43245741]
[1745093844190,0.03,138.38,138.37,45.43245741]
[1745093847312,0.03,138.4,138.39,26.0]
[1745093847517,0.03,138.4,138.39,79.3002867]
[1745093848102,0.03,138.41,138.39,79.3002867]
[1745093848315,0.03,138.41,138.4,53.3002867]
[1745093848698,1e-08,138.41,138.4,53.3002867]
[1745093849720,1e-08,138.41,138.4,60.52572022]
[1745093849922,1e-08,138.41,138.4,17.88549086]
[1745093850116,1e-08,138.41,138.4,60.52572022]
[1745093854926,1e-08,138.41,138.4,17.88549086]
[1745093856823,1e-08,138.41,138.4,28.5455482]
[1745093857027,1e-08,138.41,138.4,60.52572022]
[1745093857328,1e-08,138.41,138.4,17.88549086]
[1745093857532,1e-08,138.41,138.4,60.52572022]
[1745093858429,0.03,138.42,138.41,36.66005734]
[1745093859911,0.03,138.42,138.41,43.88496883]
[1745093866034,1e-08,138.42,138.41,43.88496883]
[1745093866744,26.6283608,138.5,138.41,61.94724756]
[1745093867040,26.6283608,138.5,138.42,26.0]
[1745093868050,19.40804205,138.5,138.46,10.66005734]
[1745093868218,0.063,138.51,138.49,10.66005734]
[1745093868942,0.063,138.51,138.48,10.66005734]
[1745093869636,0.063,138.51,138.48,17.88096758]
[1745093871128,0.063,138.51,138.47,17.88183823]
[1745093872343,10.66005734,138.5,138.46,33.22207979]
[1745093872643,10.66005734,138.5,138.46,7.22207979]
[1745093872939,29.3727062,138.51,138.46,17.88213713]
[1745093873451,18.71264886,138.51,138.46,17.88213713]
[1745093873744,29.3727062,138.51,138.46,17.88213713]
[1745093877422,36.59248417,138.51,138.46,17.88213713]
[1745093878038,50.85248417,138.51,138.46,17.88213713]
[1745093880517,10.66005734,138.49,138.45,7.22273617]
[1745093880721,10.66005734,138.49,138.44,43.88316087]
[1745093880918,10.66005734,138.46,138.41,10.66005734]
[1745093881122,10.66005734,138.46,138.37,89.1353]
[1745093881123,10.66005734,138.43,138.38,17.88653515]
[1745093881329,10.66005734,138.43,138.38,43.88653515]
[1745093882330,10.66005734,138.43,138.39,10.66005734]
[1745093882641,10.66005734,138.44,138.39,10.66005734]
[1745093883945,10.66005734,138.44,138.4,7.22543352]
[1745093885543,10.66005734,138.43,138.38,26.0]
[1745093885742,10.66005734,138.42,138.37,26.063]
[1745093885941,10.66005734,138.42,138.37,36.72305734]
[1745093886139,10.66005734,138.42,138.37,26.063]
[1745093886340,10.66005734,138.42,138.37,36.72305734]
[1745093886647,17.88458008,138.42,138.37,36.72305734]
[1745093886948,10.66005734,138.42,138.37,36.72305734]
[1745093888151,10.66005734,138.42,138.38,7.22647781]
[1745093891937,1.6055,138.43,138.39,10.66005734]
[1745093892132,6.3526,138.5,138.42,10.66005734]
[1745093892331,6.3526,138.5,138.46,10.66005734]
[1745093894356,6.3526,138.5,138.46,17.88227045]
[1745093895555,13.57286872,138.5,138.46,17.88234311]
[1745093897058,6.3526,138.5,138.46,17.88234311]
[1745093897237,17.01265734,138.5,138.46,17.88234311]
[1745093897441,17.01265734,138.5,138.46,7.22228577]
[1745093898068,24.23290127,138.5,138.46,7.22228577]
[1745093898830,10.66005734,138.49,138.46,7.22228577]
[1745093899457,13.57284393,138.5,138.45,7.22282412]
[1745093899658,24.23290127,138.5,138.45,7.22282412]
[1745093900261,18.64964886,138.49,138.45,7.22282412]
[1745093901361,29.3097062,138.49,138.45,7.22282412]
[1745093905976,18.64964886,138.49,138.45,17.88288146]
[1745093906160,18.64964886,138.5,138.46,10.66005734]
[1745093906467,29.3097062,138.5,138.46,10.66005734]
[1745093907059,29.3097062,138.5,138.47,7.22178089]
[1745093908773,29.3097062,138.5,138.46,10.66005734]
[1745093908957,29.3097062,138.5,138.46,17.88217714]
[1745093909780,36.52993584,138.5,138.46,7.2221198]
[1745093911381,29.3097062,138.5,138.46,7.2221198]
[1745093911580,18.64964886,138.5,138.46,17.88217714]
[1745093912577,36.53003759,138.5,138.45,10.66005734]
[1745093913789,36.53003759,138.5,138.45,17.88240546]
[1745093915991,14.303,138.51,138.46,10.66005734]
[1745093916180,14.303,138.51,138.48,10.66005734]
[1745093916491,14.303,138.51,138.47,10.66005734]
[1745093917898,14.303,138.51,138.48,10.66005734]
[1745093918266,14.303,138.51,138.48,7.22108988]
[1745093919216,14.303,138.51,138.49,10.66005734]
[1745093919567,0.063,138.51,138.49,10.66005734]
[1745093920504,0.063,138.51,138.49,17.88039017]
[1745093922208,0.063,138.51,138.48,17.88108868]
[1745093925813,0.063,138.51,138.48,7.22103134]
[1745093925996,0.063,138.51,138.48,17.88108868]
[1745093930913,0.063,138.51,138.48,10.66005734]
[1745093931106,0.063,138.51,138.47,17.88158623]
[1745093932019,0.063,138.51,138.48,10.66005734]
[1745093934816,0.063,138.51,138.49,7.22073795]
[1745093936321,0.063,138.51,138.49,17.88079529]
[1745093937317,0.063,138.51,138.49,7.22073795]
[1745093943230,0.063,138.51,138.47,10.66005734]
[1745093945926,0.063,138.51,138.48,7.22125938]
[1745093948626,0.063,138.51,138.48,17.88131672]
[1745093950015,0.063,138.51,138.49,10.66005734]
[1745093951228,0.063,138.51,138.5,10.66005734]
[1745093951932,0.063,138.51,138.5,17.88027394]
[1745093952521,0.063,138.51,138.5,7.2202166]
[1745093953809,0.063,138.51,138.49,17.88053955]
[1745093954238,0.063,138.51,138.49,7.22048221]
[1745093954411,0.063,138.51,138.48,17.88109142]
[1745093963442,0.063,138.51,138.49,10.66005734]
[1745093967039,0.063,138.51,138.49,17.88030283]
[1745093970250,0.063,138.51,138.48,10.66005734]
[1745093971142,0.063,138.51,138.46,18.05462215]
[1745093971343,0.063,138.51,138.48,10.66005734]
[1745093971545,0.063,138.51,138.49,7.22073795]
[1745093977846,0.063,138.51,138.48,10.66005734]
[1745093977847,10.66005734,138.5,138.44,18.05812815]
[1745093978032,10.66005734,138.49,138.45,7.22282412]
[1745093978230,10.66005734,138.48,138.43,17.88367744]
[1745093980333,10.66005734,138.48,138.44,17.88289621]
[1745093983660,17.88081584,138.49,138.44,17.88289621]
[1745093984369,10.66005734,138.49,138.44,17.88289621]
[1745093989585,18.64964886,138.48,138.44,17.88289621]
[1745094004198,24.78005734,138.5,138.45,10.66005734]
[1745094004375,14.12,138.5,138.46,10.66005734]
[1745094005381,14.12,138.5,138.45,10.66005734]
[1745094005382,24.78005734,138.5,138.45,10.66005734]
[1745094006907,36.53061762,138.49,138.43,1.6138]
[1745094007197,10.66005734,138.48,138.43,10.66005734]
[1745094008001,29.3097062,138.49,138.44,10.66005734]
[1745094009898,29.3097062,138.49,138.45,7.22282412]
[1745094010602,18.64964886,138.49,138.45,17.88288146]
[1745094010784,14.12,138.5,138.46,10.66005734]
[1745094010984,14.12,138.5,138.45,17.88288146]
[1745094011803,14.12,138.5,138.48,10.66005734]
[1745094012001,14.12,138.5,138.49,7.22073795]
[1745094012194,0.063,138.51,138.49,7.22073795]
[1745094013706,0.063,138.51,138.49,10.66005734]
[1745094015710,0.063,138.51,138.49,17.88042742]
[1745094017712,0.063,138.51,138.48,10.66005734]
[1745094020310,0.063,138.51,138.48,17.88084292]
[1745094020911,0.063,138.51,138.48,7.22078558]
[1745094028219,0.063,138.51,138.48,10.66005734]
[1745094030228,18.71264886,138.51,138.47,10.66005734]
[1745094030423,18.71264886,138.51,138.48,7.22125938]
[1745094032415,0.063,138.51,138.46,7.22230247]
[1745094032622,10.66005734,138.5,138.46,7.22230247]
[1745094032816,10.72305734,138.51,138.46,17.88235981]
[1745094033725,17.94286999,138.51,138.46,17.88235981]
[1745094034331,0.063,138.51,138.46,17.88235981]
[1745094034527,0.063,138.51,138.47,10.66005734]
[1745094034826,10.72305734,138.51,138.46,17.88235981]
[1745094035032,10.66005734,138.5,138.46,7.22230247]
[1745094035327,18.64964886,138.49,138.46,7.22230247]
[1745094036411,10.72305734,138.51,138.46,17.88235981]
[1745094037633,18.64964886,138.49,138.46,7.22230247]
[1745094045839,18.64964886,138.49,138.46,17.88235981]
[1745094046219,18.64964886,138.49,138.46,7.22230247]
[1745094049937,18.64964886,138.49,138.46,17.88235981]
[1745094059655,18.64964886,138.49,138.45,10.66005734]
[1745094062855,18.64964886,138.49,138.46,7.22230247]
[1745094066564,0.063,138.51,138.48,10.66005734]
[1745094066767,0.063,138.51,138.5,10.66005734]
[1745094067941,0.063,138.51,138.5,17.88027394]
[1745094069765,0.063,138.51,138.48,18.05279611]
[1745094070063,0.063,138.51,138.49,10.66005734]
[1745094070450,0.063,138.51,138.48,18.05279611]
[1745094070773,0.063,138.51,138.5,10.66005734]
[1745094071855,0.063,138.51,138.5,17.88027394]
[1745094073155,0.063,138.51,138.5,25.82007394]
[1745094073359,0.03,138.55,138.52,26.0]
[1745094073672,0.03,138.55,138.54,10.66005734]
[1745094073871,0.03,138.55,138.54,17.87818928]
[1745094084079,0.03,138.55,138.53,17.87846173]
[1745094091770,0.03,138.55,138.54,10.66005734]
[1745094092175,0.03,138.55,138.53,17.87846173]
[1745094094087,10.69005734,138.55,138.48,99.3528607]
[1745094094266,10.66005734,138.54,138.49,10.66005734]
[1745094094674,18.64964886,138.54,138.5,10.66005734]
[1745094095392,18.64964886,138.54,138.5,17.87985265]
[1745094097691,0.03,138.55,138.5,17.87985265]
[1745094097871,0.03,138.55,138.53,10.66005734]
[1745094098979,0.03,138.55,138.54,10.66005734]
[1745094100170,0.03,138.55,138.54,17.87818928]
[1745094100996,0.03,138.55,138.54,7.21813194]
[1745094101506,10.69005734,138.55,138.48,99.35284799]
[1745094101672,10.69005734,138.55,138.5,10.66005734]
[1745094101872,10.66005734,138.54,138.49,10.66005734]
[1745094102577,17.90780192,138.55,138.5,10.66005734]
[1745094103603,17.90780192,138.55,138.5,17.87995983]
[1745094104201,17.90780192,138.55,138.5,7.21990249]
[1745094104396,17.90780192,138.55,138.5,17.87995983]
[1745094106378,10.66005734,138.53,138.49,17.88079529]
[1745094106577,10.66005734,138.53,138.49,7.22073795]
[1745094107896,10.66005734,138.54,138.49,17.88079529]
[1745094108792,17.90780192,138.55,138.49,17.88079529]
[1745094110204,10.69005734,138.55,138.5,10.66005734]
[1745094111693,0.03,138.55,138.5,10.66005734]
[1745094112585,0.03,138.55,138.51,7.21969532]
[1745094112893,0.03,138.55,138.51,17.87975266]
[1745094115109,0.03,138.55,138.52,10.66005734]
[1745094116907,0.03,138.55,138.51,17.87975266]
[1745094117612,0.03,138.55,138.52,10.66005734]
[1745094118899,0.03,138.55,138.52,17.87883326]
[1745094123012,0.03,138.55,138.52,7.21877592]
[1745094123189,0.03,138.55,138.53,10.66005734]
[1745094123512,10.66005734,138.54,138.51,7.2194713]
[1745094123807,10.66005734,138.53,138.5,7.21999967]
[1745094124207,10.66005734,138.54,138.5,7.21999967]
[1745094126520,0.03,138.55,138.52,10.66005734]
[1745094126820,0.03,138.55,138.5,17.88005701]
[1745094126988,10.69005734,138.55,138.5,17.88005701]
[1745094127807,0.03,138.55,138.5,17.88005701]
[1745094128016,0.03,138.55,138.51,10.66005734]
[1745094128413,0.03,138.55,138.52,7.21917412]
[1745094128714,10.69005734,138.55,138.51,7.21956152]
[1745094130813,0.03,138.55,138.52,10.66005734]
[1745094132922,0.03,138.55,138.53,7.21865299]
[1745094134907,0.03,138.55,138.53,17.87871033]
[1745094135115,0.03,138.55,138.54,10.66005734]
[1745094137226,0.03,138.55,138.54,17.87818928]
[1745094140323,0.03,138.55,138.54,7.21813194]
[1745094147742,0.03,138.55,138.52,17.87923146]
[1745094149243,0.03,138.55,138.48,6.5607]
[1745094149426,0.03,138.55,138.49,7.22073795]
[1745094149427,10.66005734,138.54,138.49,7.22073795]
[1745094149633,10.66005734,138.54,138.49,17.88079529]
[1745094153455,0.03,138.55,138.51,10.66005734]
[1745094154356,10.66005734,138.54,138.49,35.93264018]
[1745094159762,18.64964886,138.54,138.5,10.66005734]
[1745094159955,18.64964886,138.54,138.51,7.21969532]
[1745094160449,29.3097062,138.52,138.48,7.22125938]
[1745094160643,10.66005734,138.5,138.48,7.22125938]
[1745094161161,10.66005734,138.51,138.48,7.22125938]
[1745094161556,10.66005734,138.51,138.47,0.063]
[1745094167161,29.3097062,138.52,138.47,0.063]
[1745094167360,29.3097062,138.48,138.47,0.063]
[1745094167560,43.3497062,138.48,138.47,0.063]
[1745094168656,50.57096558,138.48,138.47,0.063]
[1745094174071,94.78429494,138.48,138.47,0.063]
[1745094183581,39.91090824,138.48,138.47,0.063]
[1745094183782,50.57096558,138.48,138.47,0.063]
[1745094184079,39.91090824,138.48,138.47,0.063]
[1745094184257,50.57096558,138.48,138.47,0.063]
[1745094184754,18.64964886,138.5,138.47,10.72305734]
[1745094185275,18.64964886,138.5,138.48,10.66005734]
[1745094185475,18.64964886,138.5,138.47,10.72305734]
[1745094185773,18.64964886,138.5,138.47,17.94455739]
[1745094186573,18.64964886,138.5,138.47,10.72305734]
[1745094187580,18.64964886,138.5,138.47,17.94478468]
[1745094187771,18.64964886,138.5,138.47,0.063]
[1745094189484,29.3097062,138.5,138.47,0.063]
[1745094191267,18.64964886,138.53,138.48,10.66005734]
[1745094191590,29.3097062,138.53,138.48,10.66005734]
[1745094192088,29.3097062,138.51,138.47,0.063]
[1745094192674,10.66005734,138.49,138.47,0.063]
[1745094192873,10.66005734,138.48,138.47,0.063]
[1745094201489,29.3097062,138.48,138.47,0.063]
[1745094217416,18.64964886,138.49,138.47,0.063]
[1745094219415,14.04,138.5,138.47,0.063]
[1745094220737,10.66005734,138.5,138.47,0.063]
[1745094244140,10.66005734,138.51,138.47,0.063]
[1745094245533,10.66005734,138.53,138.48,10.66005734]
[1745094245744,18.64964886,138.54,138.5,10.66005734]
[1745094246338,24.73005734,138.55,138.5,10.66005734]
[1745094246522,14.07,138.55,138.49,36.66005734]
[1745094246726,10.66005734,138.54,138.49,36.66005734]
[1745094247040,10.66005734,138.53,138.49,26.0]
[1745094247638,10.66005734,138.53,138.5,7.2202166]
[1745094253250,10.66005734,138.54,138.5,7.2202166]
[1745094258630,44.64964886,138.5,138.47,0.063]
[1745094258822,55.3097062,138.45,138.44,0.063]
[1745094259043,44.64964886,138.41,138.4,0.063]
[1745094259228,44.64964886,138.38,138.36,11.24316004]
[1745094259554,55.3097062,138.38,138.36,11.24316004]
[1745094260539,62.53618401,138.38,138.36,11.24316004]
[1745094261252,18.64964886,138.37,138.35,0.063]
[1745094261544,50.0076062,138.36,138.35,0.063]
[1745094262022,29.3097062,138.35,138.34,0.063]
[1745094262953,36.53775101,138.35,138.34,0.063]
[1745094264540,29.3097062,138.35,138.27,43.89228414]
[1745094264741,10.66005734,138.32,138.27,43.89228414]
[1745094266155,10.66005734,138.31,138.27,43.89228414]
[1745094266350,10.66005734,138.31,138.27,33.2322268]
[1745094268950,10.66005734,138.29,138.27,33.2322268]
[1745094269154,10.66005734,138.29,138.27,7.2322268]
[1745094269531,10.66005734,138.28,138.27,7.2322268]
[1745094269732,10.66005734,138.28,138.22,18.08601328]
[1745094269959,10.66005734,138.27,138.23,26.0]
[1745094270358,10.66005734,138.27,138.23,33.23431961]
[1745094271458,10.66005734,138.26,138.23,33.23431961]
[1745094271652,10.66005734,138.27,138.23,33.23431961]
[1745094271958,10.66005734,138.28,138.23,33.23431961]
[1745094272962,18.64964886,138.28,138.23,33.23431961]
[1745094273463,29.3097062,138.3,138.23,61.98017598]
[1745094273642,29.3097062,138.3,138.24,10.66005734]
[1745094274857,29.3097062,138.3,138.25,7.23327305]
[1745094275157,18.64964886,138.28,138.25,7.23327305]
[1745094275741,10.66005734,138.3,138.25,10.66005734]
[1745094275939,18.64964886,138.3,138.26,10.66005734]
[1745094276946,18.64964886,138.3,138.26,7.23274989]
[1745094277258,18.64964886,138.3,138.26,17.89280723]
[1745094277661,10.66005734,138.29,138.26,7.23274989]
[1745094278763,10.66005734,138.3,138.26,7.23274989]
[1745094279152,10.66005734,138.29,138.25,7.23327305]
[1745094279665,29.3097062,138.3,138.25,7.23327305]
[1745094281265,18.64964886,138.3,138.25,7.23327305]
[1745094282983,29.3097062,138.3,138.25,7.23327305]
[1745094283146,29.3097062,138.3,138.24,54.74454808]
[1745094283349,18.64964886,138.28,138.24,54.74454808]
[1745094284668,10.66005734,138.29,138.25,7.23327305]
[1745094284868,18.64964886,138.3,138.26,10.66005734]
[1745094285194,29.3097062,138.3,138.25,35.97651303]
[1745094286186,29.3097062,138.3,138.25,0.85626663]
[1745094287191,10.66005734,138.29,138.24,36.66005734]
[1745094288181,18.64964886,138.28,138.25,7.23327305]
[1745094292685,14.1,138.29,138.26,10.66005734]
[1745094293097,14.1,138.29,138.27,10.66005734]
[1745094293480,14.1,138.29,138.26,10.66005734]
[1745094294685,29.3097062,138.31,138.27,7.2322268]
[1745094296685,10.66005734,138.3,138.27,7.2322268]
[1745094297584,10.66005734,138.3,138.26,7.23274989]
[1745094297785,10.66005734,138.3,138.25,10.66005734]
[1745094299081,18.64964886,138.28,138.25,7.23327305]
[1745094299379,10.66005734,138.28,138.25,7.23327305]
[1745094299685,29.3097062,138.28,138.25,7.23327305]
[1745094302170,18.64964886,138.28,138.25,7.23327305]
[1745094303692,29.3097062,138.27,138.25,7.23327305]
[1745094303873,10.66005734,138.26,138.23,7.23431961]
[1745094304472,29.3097062,138.27,138.23,7.23431961]
[1745094311084,20.5678,138.29,138.23,35.98017598]
[1745094311285,18.64964886,138.28,138.25,10.66005734]
[1745094311992,18.64964886,138.28,138.24,10.66005734]
[1745094312297,18.64964886,138.28,138.25,7.23327305]
[1745094314369,29.3097062,138.28,138.25,7.23327305]
[1745094315797,10.66005734,138.27,138.25,7.23327305]
[1745094316696,10.66005734,138.27,138.23,25.32011864]
[1745094318180,29.3097062,138.28,138.23,25.32011864]
[1745094318380,18.64964886,138.28,138.23,25.32011864]
[1745094323880,18.64964886,138.28,138.23,35.98017598]
[1745094339610,29.3097062,138.28,138.23,25.32011864]
[1745094341117,29.3097062,138.28,138.23,35.98017598]
[1745094346512,10.66005734,138.25,138.23,7.23431961]
[1745094347519,10.66005734,138.25,138.21,7.23536647]
[1745094348223,18.64964886,138.22,138.2,10.23569067]
[1745094348520,29.3097062,138.22,138.2,10.23569067]
[1745094349209,18.64964886,138.22,138.2,10.23569067]
[1745094351924,14.06,138.24,138.2,20.89574801]
[1745094352310,18.64964886,138.25,138.23,10.66005734]
[1745094352505,18.64964886,138.25,138.24,10.66005734]
[1745094352699,14.06,138.27,138.24,10.66005734]
[1745094353927,14.06,138.27,138.25,7.23327305]
[1745094354104,18.64964886,138.26,138.24,7.23374222]
[1745094354305,10.66005734,138.25,138.23,7.23411737]
[1745094355237,29.3097062,138.26,138.23,7.23411737]
[1745094355729,29.3097062,138.26,138.22,7.234843]
[1745094355909,10.66005734,138.25,138.22,7.234843]
[1745094356611,18.64964886,138.24,138.21,7.23514624]
[1745094358834,18.64964886,138.22,138.2,10.23564185]
[1745094359417,10.66005734,138.23,138.2,10.23564185]
[1745094359611,18.64964886,138.22,138.2,10.23564185]
[1745094367115,10.66005734,138.24,138.2,10.23564185]
[1745094370438,18.64964886,138.25,138.2,10.23564185]